{"text_format":"1","workbook":"xlsx","n_sheets":1,"sheets":["August 2024"],"not_rendered":{"charts":0,"images":0,"macros":1,"external_links":0,"defined_names":1,"comments":1,"pivot_tables":0},"unopened":[],"bounds":{"document_bytes":16777216,"sheet_cells":100000,"rows_first":2000,"rows_last":500,"rows_between":2000,"halvings":0,"cell_chars":16384,"cell_head_chars":4096},"cells_cut":0,"cells_raw":0,"read":"whole","date_system":"1900"}

{"sheet":"August 2024","index":0,"n_rows":391,"n_cols":19,"rows_kept":391,"cut":false,"hidden":false,"merged":[[155,12,155,18],[156,12,156,18],[167,2,167,7],[166,2,166,7],[175,12,175,18],[176,2,177,4],[176,12,176,18],[173,2,174,4],[173,12,173,18],[168,12,168,18],[156,2,156,4],[162,2,162,7],[161,2,161,7],[160,12,160,18],[164,2,164,4],[177,12,177,18],[169,12,169,18],[170,2,170,8],[170,12,170,18],[171,2,171,8],[171,12,171,18],[174,12,174,18],[183,2,183,4],[183,12,183,18],[181,12,181,18],[179,12,179,18],[180,12,180,18],[166,12,166,18],[167,12,167,18],[165,2,165,7],[202,12,202,18],[187,2,188,8],[187,12,187,18],[192,12,192,18],[193,12,193,18],[182,2,182,8],[184,12,184,18],[179,2,180,4],[185,2,185,8],[185,12,185,18],[186,12,186,18],[212,2,212,8],[212,12,212,18],[165,12,165,18],[157,12,157,18],[158,2,158,7],[158,12,158,18],[160,2,160,4],[201,12,201,18],[164,12,164,18],[161,12,161,18],[162,12,162,18],[163,12,163,18],[178,12,178,18],[182,12,182,18],[159,12,159,18],[157,2,157,7],[172,12,172,18],[188,12,188,18],[189,12,189,18],[190,12,190,18],[191,12,191,18],[194,12,194,18],[195,12,195,18],[192,2,193,8],[224,2,224,8],[220,12,220,18],[232,2,233,4],[230,12,230,18],[231,12,231,18],[225,12,225,18],[226,12,226,18],[227,12,227,18],[215,12,215,18],[216,12,216,18],[218,12,218,18],[219,12,219,18],[222,12,222,18],[223,12,223,18],[221,12,221,18],[217,12,217,18],[217,2,217,4],[242,12,242,18],[224,12,224,18],[213,12,213,18],[214,12,214,18],[228,12,228,18],[229,12,229,18],[233,12,233,18],[204,12,204,18],[205,12,205,18],[206,12,206,18],[207,12,207,18],[208,12,208,18],[209,12,209,18],[211,12,211,18],[234,12,234,18],[244,2,244,6],[244,12,244,18],[232,12,232,18],[240,2,240,8],[242,6,242,8],[243,6,243,8],[243,12,243,18],[196,2,200,8],[196,12,196,18],[197,12,197,18],[198,12,198,18],[199,12,199,18],[200,12,200,18],[237,12,237,18],[239,2,239,8],[239,12,239,18],[238,12,238,18],[219,2,219,4],[216,2,216,4],[214,2,214,4],[210,12,210,18],[221,2,221,4],[203,2,209,8],[203,12,203,18],[255,6,255,8],[245,2,245,6],[245,12,245,18],[246,2,246,6],[246,12,246,18],[247,2,247,6],[247,12,247,18],[248,2,248,6],[248,12,248,18],[254,12,254,14],[254,16,254,18],[154,2,154,7],[154,12,154,18],[93,14,93,17],[95,1,95,4],[112,12,112,18],[148,12,148,18],[141,12,141,18],[139,12,139,18],[152,2,152,4],[151,12,151,18],[119,5,119,8],[121,6,121,8],[104,12,104,18],[102,12,102,18],[128,12,128,18],[135,12,135,18],[138,12,138,18],[126,12,126,18],[150,12,150,18],[130,12,130,18],[149,2,149,7],[149,12,149,18],[146,12,146,18],[147,12,147,18],[152,12,152,18],[153,2,153,7],[153,12,153,18],[61,1,61,3],[58,11,58,18],[61,11,61,13],[71,1,71,4],[71,11,71,14],[76,11,76,18],[63,6,63,7],[70,4,70,5],[69,4,69,5],[68,4,68,5],[67,4,67,5],[66,4,66,5],[65,4,65,5],[64,4,64,5],[83,2,83,8],[79,16,79,17],[83,12,83,18],[58,1,58,8],[70,6,70,7],[132,2,132,4],[127,12,127,18],[10,1,10,6],[29,15,29,18],[36,1,36,9],[38,18,38,19],[29,5,29,8],[35,7,35,8],[21,5,21,8],[25,15,25,18],[21,1,21,4],[11,1,11,6],[12,1,12,9],[128,2,128,8],[116,12,117,18],[118,12,118,18],[119,12,119,14],[127,2,127,8],[64,6,64,7],[3,6,3,8],[3,16,3,18],[4,3,4,8],[4,13,4,18],[31,15,31,16],[23,5,23,8],[27,15,27,18],[25,5,25,8],[27,5,27,8],[31,5,31,6],[19,17,19,18],[19,14,19,15],[23,15,23,18],[9,1,9,6],[19,4,19,5],[19,7,19,8],[38,5,38,6],[38,15,38,16],[129,12,129,18],[150,2,150,7],[141,2,141,4],[139,2,139,8],[145,12,145,18],[142,2,142,7],[140,12,140,18],[144,2,144,4],[142,12,142,18],[143,12,143,18],[144,12,144,18],[130,2,130,4],[145,2,145,7],[148,2,148,4],[146,2,146,7],[134,12,134,18],[131,12,131,18],[132,12,132,18],[133,12,133,18],[41,1,41,8],[43,16,43,17],[56,2,56,8],[54,6,54,7],[88,17,88,18],[85,17,85,18],[88,1,88,6],[88,7,88,8],[86,4,86,7],[86,14,86,17],[63,1,63,2],[63,11,63,12],[88,11,88,16],[41,11,41,18],[56,11,56,18],[54,16,54,17],[50,16,50,17],[50,6,50,7],[48,16,48,17],[48,6,48,7],[45,6,45,7],[43,6,43,7],[64,14,64,15],[63,14,63,15],[235,2,236,4],[235,12,235,18],[236,12,236,18],[70,14,70,15],[69,14,69,15],[68,14,68,15],[67,14,67,15],[66,14,66,15],[65,14,65,15],[70,16,70,17],[69,16,69,17],[68,16,68,17],[67,16,67,17],[77,1,77,8],[77,11,77,18],[112,2,112,8],[119,2,119,4],[116,2,116,8],[134,2,134,4],[74,4,74,7],[74,14,74,17],[79,6,79,7],[76,1,76,8],[85,7,85,8],[46,1,46,9],[55,1,55,9],[119,15,119,18],[59,1,59,8],[59,11,59,18],[63,4,63,5],[102,2,102,8],[93,4,93,7],[95,11,95,14],[61,15,61,18],[65,16,65,17],[64,16,64,17],[69,6,69,7],[68,6,68,7],[67,6,67,7],[66,6,66,7],[65,6,65,7],[66,16,66,17],[61,5,61,8],[63,16,63,17],[114,2,114,8],[114,12,114,18]]}
[null,"    (RL Extremwetterfolgen, Stand 05.12.2023)"]
[]
[]
[null,"  zum Antrag vom",null,null,null,null,null,null,null,null,null,"  zum Verwendungsnachweis vom"]
[null,"  Antragsteller",null,null,null,null,null,null,null,null,null,"  Antragsteller"]
[]
[]
[null,null,null,null,null,null,null,"bitte ankreuzen",null,null,null,"  Maßnahme",null,null,null,"ja",null,"nein"]
[]
[null,"  Nr. 2.4.5.2  Nachbesserung bei geförderten Kulturen, die schon",null,null,null,null,null,null,null,null,null,{"$f":"IF(H10=\"x\",\"  Nr. 2.4.5.2 durchgeführt?\",\"\")","v":""}]
[null,"                   nach Nr. 2.4.3.1 oder 2.4.3.2 gefördert wurden [Neufälle]"]
[]
[null,"    « jeweils 50 % der Fördersätze nach Maßnahmen 2.4.3, siehe Anlage 1, Seite 1 »"]
[]
[]
[null,"  I. ANTRAGSDATEN",null,null,null,null,null,null,null,null,null,"  I. VERWENDUNGSNACHWEISDATEN"]
[]
[null,"  (Art, Ort, Durchführungszeitraum)",null,null,null,null,null,null,null,null,null,"  (Art, Ort, Durchführungszeitraum)"]
[]
[null,"  Durchf.-Zeitraum von",null,null,null,null,"bis …",null,null,null,null,"  Durchf.-Zeitraum von",null,null,null,null,"bis …"]
[]
[null,null,null,null,null,null,null,null,null,null,null,"  Durchführung wie geplant",null,null,null,null,"  (ganz oder tlw. ja=J, nein=N)"]
[]
[null,"  Gemarkung",null,null,null,null,null,null,null,null,null,"  Gemarkung",null,null,null,{"$f":"IF(ISBLANK(F24),\" \",IF(P22=\"J\",F24,IF(P22=\"T\",F24,\" \")))","v":" "}]
[]
[null,"  Flur / Flurstück",null,null,null,null,null,null,null,null,null,"  Flur / Flurstück",null,null,null,{"$f":"IF(ISBLANK(F26),\" \",IF(P22=\"J\",F26,IF(P22=\"T\",F26,\" \")))","v":" "}]
[]
[null,"  Unterabteilung",null,null,null,null,null,null,null,null,null,"  Unterabteilung",null,null,null,{"$f":"IF(ISBLANK(F28),\" \",IF(P22=\"J\",F28,IF(P22=\"T\",F28,\" \")))","v":" "}]
[]
[null,"  Flächenermittlungsverfahren",null,null,null,null,null,null,null,null,null,"  Flächenermittlungsverfahren",null,null,null,{"$f":"IF(ISBLANK(F30),\" \",IF(P22=\"J\",F30,IF(P22=\"T\",F30,\" \")))","v":" "}]
[]
[null,"  Größe der Kalamitätsfläche, auf der Antrag ",null,null,null,null,null,null,null,null,null,"  Größe der Kalamitätsfläche, auf der Antrag ",null,null,null,{"$f":"IF(ISBLANK(F32),\" \",IF($P$22=\"J\",F32,IF($P$22=\"T\",F32,\" \")))","v":" "}]
[null,"  basiert (nicht identisch mit Pflanzfläche), in ha",null,null,null,null,null,null,null,null,null,"  basiert (nicht identisch mit Pflanzfläche), in ha"]
[]
[null,"  Bei Aufforstungen: Empfohlener Waldentwicklungstyp"]
[null,"  (WET) nach dem Waldbaukonzept NRW - Ziffer …"]
[]
[]
[null,"  Antrag nach Nr. ... ",null,null,null,"Einheit\nEUR / fm / ha",null,null,"Förder-\nbetrag:",null,null,"  Verwendungsnachweis nach Nr. ... ",null,null,null,"Einheit\nEUR / fm / ha",null,null,"Förder-\nbetrag:"]
[]
[]
[null,"  Nr. 2.4.5.2  Nachbesserungen",null,null,null,null,null,null,null,null,null,"  Nr. 2.4.5.2  Nachbesserungen"]
[]
[null,"  Fläche ges. Anpflanzung",null,null,null,null,null,null," in ha",null,null,"  Fläche ges. Anpflanzung",null,null,null,null,{"$f":"IF(P22=\"J\",G44,IF(P22=\"T\",G44,\" \"))","v":" "},null,"  in ha"]
[]
[null,"  Höhe des NH-Anteils im Vorbestand",null,null,null,null,null,null," in %"]
[]
[]
[null,"  Flächengröße (nur Nadelholz, nachher)",null,null,null,null,null,null," in ha",null,null,"  Flächengröße (nur Nadelholz, nachher)",null,null,null,null,{"$f":"IF(P22=\"J\",G49,IF(P22=\"T\",G49,\" \"))","v":" "},null,"  in ha"]
[]
[null,"  Höhe des Anteils des heimischen Laubholzes inkl.",null,null,null,null,null,null," in %",null,null,"  Höhe des Anteils des heimischen Laubholzes inkl.",null,null,null,null,{"$f":"IF($P$22=\"J\",G51,IF($P$22=\"T\",G51,\" \"))","v":" "},null,"  in %"]
[null,"  der Naturverjüngung heimischen Laubholzes (nachher) -",null,null,null,null,null,null,null,null,null,"  der Naturverjüngung heimischen Laubholzes (nachher) -"]
[null,"  vgl. Nr. 6.5.2 Nr. 1 Ex-RL",null,null,null,null,null,null,null,null,null,"  vgl. Nr. 6.5.2 Nr. 1 Ex-RL"]
[]
[null,"  Höhe des Anteils förderbarer NH-Arten (nachher)",null,null,null,null,null,null," in %",null,null,"  Höhe des Anteils förderbarer NH-Arten (nachher)",null,null,null,null,{"$f":"IF($P$22=\"J\",G55,IF($P$22=\"T\",G55,\" \"))","v":" "},null,"  in %"]
[]
[null,null,null,null,null,null,null,null,null,null,null,"Betrachten Sie diese AzBdM bitte nur als Dokumentationshilfe zum Antrag \nund nicht als Allzweckformular, das Ihnen jede weitere Prüfung erspart. \nSo gibt es beispielsweise i.V.m. mit dem Nadelholzanteil oder dem WET \nKonstellationen, die das Berechnungsblatt nicht abbildet!"]
[]
[null,"a) Nachbesserung nach Nr. 2.4.5.2",null,null,null,null,null,null,null,null,null,{"$f":"B59","v":"a) Nachbesserung nach Nr. 2.4.5.2"}]
[null,"(hier: für Neufälle - die Hälfte der Fördersätze von Nr. 2.4.3)",null,null,null,null,null,null,null,null,null,{"$f":"B60","v":"(hier: für Neufälle - die Hälfte der Fördersätze von Nr. 2.4.3)"}]
[]
[null,"  Nadelholzfläche nachher",null,null,{"$f":"IF(G44=0,\"\",$G$49 / $G$44)","v":""},"(in % der Gesamt-Pflanzung inkl. Waldrand)",null,null,null,null,null,"  Nadelholzfläche nachher",null,null,null,"(in % der Gesamt-Pflanzung inkl. Waldrand)"]
[]
[null,"Waldentwicklungstyp",null,"Pflanz-\nverband","Fläche in ha",null,"EUR / ha",null,"Summe EUR",null,null,"Waldentwicklungstyp",null,"Pflanz-\nverband","Fläche in ha",null,"EUR / ha",null,"Summe €"]
[null,null,{"$f":"IF(ISERROR(LOOKUP(B65,$B$263:$B$290,$C$263:$C$290)),\" \",LOOKUP(B65,$B$263:$B$290,$C$263:$C$290))","v":" "},null,null,null,{"$f":"IF(B65=\"\",\"\",0.5*LOOKUP(B65,$B$263:$B$290,$M$263:$M$290))","v":""},null,{"$f":"IF(ISNUMBER(G65),E65*G65,\" \")","v":" "},null,null,{"$f":"IF(ISBLANK(B65),\" \",IF($P$22=\"J\",B65,IF($P$22=\"T\",B65,\" \")))","v":" "},{"$f":"IF(ISERROR(LOOKUP(L65,$B$263:$B$290,$C$263:$C$290)),\" \",LOOKUP(L65,$B$263:$B$290,$C$263:$C$290))","v":" "},null,{"$f":"IF(ISBLANK(E65),\" \",IF($P$22=\"J\",E65,IF($P$22=\"T\",E65,\" \")))","v":" "},null,{"$f":"IF(ISERROR(LOOKUP(L65,$B$263:$B$290,0.5*$M$263:$M$290)),\" \",0.5*LOOKUP(L65,$B$263:$B$290,$M$263:$M$290))","v":" "},null,{"$f":"IF(ISNUMBER(Q65),O65*Q65,\" \")","v":" "}]
[null,null," ",null,null,null,"",null," ",null,null," "," ",null,{"$f":"IF(ISBLANK(E66),\" \",IF($P$22=\"J\",E66,IF($P$22=\"T\",E66,\" \")))","v":" "},null," ",null," "]
[null,null," ",null,null,null,"",null," ",null,null," "," ",null," ",null," ",null," "]
[null,null," ",null,null,null,"",null," ",null,null," "," ",null," ",null," ",null," "]
[null,null," ",null,null,null,"",null," ",null,null," "," ",null," ",null," ",null," "]
[null,null," ",null,null,null,"",null," ",null,null," "," ",null," ",null," ",null," "]
[null,null," ",null,null,null,"",null," ",null,null," "," ",null," ",null," ",null," "]
[]
[]
[null,"  Möglicher Förderbetrag für d) Anpflanzung: ",null,null,null,null,null,null,{"$f":"IF(SUM(I65:I71)=0,\"\",SUM(I65:I71))","v":""},null,null,{"$f":"B74","v":"  Möglicher Förderbetrag für d) Anpflanzung: "},null,null,null,null,null,null,{"$f":"IF(SUM(S65:S71)=0,\"\",SUM(S65:S71))","v":""}]
[]
[]
[null,"b) Waldrand",null,null,null,null,null,null,null,null,null,{"$f":"B77","v":"b) Waldrand"}]
[null,"(hier: für Neufälle - die Hälfte der Fördersätze von Nr. 2.4.3)",null,null,null,null,null,null,null,null,null,{"$f":"B78","v":"(hier: für Neufälle - die Hälfte der Fördersätze von Nr. 2.4.3)"}]
[]
[null,"  Waldrand - in laufenden Metern",null,null,null,null,null,null,"     lfd. M.",null,null,"  Waldrand - in laufenden Metern",null,null,null,null,{"$f":"IF(ISBLANK(G80),\" \",IF($P$22=\"J\",G80,IF($P$22=\"T\",G80,\" \")))","v":" "},{"$f":"IF(ISBLANK(H80),\" \",IF($P$22=\"J\",H80,IF($P$22=\"T\",H80,\" \")))","v":" "},"     lfd. M."]
[]
[null,"  Falls kein Waldrand angelegt wird, bitte begründen, warum nicht:",null,null,null,null,null,null,null,null,null,"  Falls kein Waldrand angelegt wird, bitte begründen, warum nicht:"]
[]
[]
[]
[null,"  Möglicher Förderbetrag für Waldrand:",null,null,null,null,null,{"$f":"IF(G80=0,0,G80*2.2*0.5)","v":0},null,null,null,{"$f":"B86","v":"  Möglicher Förderbetrag für Waldrand:"},null,null,null,null,null,{"$f":"IF(Q80=\" \",0,Q80*2.2*0.5)","v":0}]
[]
[]
[null,"  Tatsächl. Förderbetrag für Maßn.  a) + b):",null,null,null,null,null,{"$f":"IF(I74=\"\",\"\",I74+H86)","v":""},null,null,null,"  Tatsächl. Förderbetrag für Maßn.  a) + b):",null,null,null,null,null,{"$f":"IF(S74=\"\",\"\",S74+R86)","v":""}]
[]
[]
[null,"  Höchstförderung: 50.000 EUR je Antragst. + Jahr / je FBG-Mitglied + Jahr",null,null,null,null,null,null,null,null,null,"  Höchstförderung: 50.000 EUR je Antragst. + Jahr / je FBG-Mitglied + Jahr"]
[null,"  bei WG zusätzlich 2.500 EUR je angefangene 50 ha Mitgliedsfläche",null,null,null,null,null,null,null,null,null,"  bei WG zusätzlich 2.500 EUR je angefangene 50 ha Mitgliedsfläche"]
[]
[]
[null,"  Höchstbetrag beachtet?",null,null,null,null,"  ja",null,"  nein",null,null,"  Höchstbetrag beachtet?",null,null,null,null,"  ja",null,"  nein"]
[]
[]
[]
[]
[null,"  II.  STELLUNGNAHME DER LEITUNG DES FBB",null,null,null,null,null,null,null,null,null,"  II.  STELLUNGNAHME DER LEITUNG DES FBB"]
[]
[null,null,"II.1.     Fachliche Stellungnahme - insbesondere zu…",null,null,null,null,null,null,null,null,null,"II.1.     Fachliche Stellungnahme "]
[]
[null,null,"   • Schäden (Art und Ausmaß),",null,null,null,null,null,null,null,null,null,"   • dass die Maßnahmen forstfachlich sinnvoll und zweckmäßig waren"]
[null,null,"   • Bewältigung von Schäden und Folgeschäden extremer Wetter-",null,null,null,null,null,null,null,null,null,"   • und keine Umstände erkennbar sind, die Zweifel an einer"]
[null,null,"     ereignisse, hier Borkenkäferbefall (Nr. 4 der Fö-RL), ",null,null,null,null,null,null,null,null,null,"     ordnungsgemäßen Maßnahmendurchführung wecken oder"]
[null,null,"   • Begründung für die gewählte Maßnahme, ",null,null,null,null,null,null,null,null,null,"     die Abweichungen bzw. Unregelmäßigkeiten bei der Angabe der"]
[null,null,"   • Art und Umfang der Maßnahme    ",null,null,null,null,null,null,null,null,null,"     abgerechneten Holzmengen oder Flächengrößen begünden"]
[null,null,"   • Ist Waldentwicklungstyp (WET) richtig ausgewählt? "]
[null,null,"   • Sind eventuelle Abweichungen forstfachlich begründet?"]
[]
[]
[]
[null,null,"falls Planung nicht durch staatliche(n) Förster(in) erfolgte, \nNamen der forstfachlich qualifizierten Person angeben:",null,null,null,null,null,null,null,null,null,"falls Planung nicht durch staatliche(n) Förster(in) erfolgte, \nNamen der forstfachlich qualifizierten Person angeben:"]
[]
[null,null,"Das beantragte Vorhaben wird von mir für forstfachlich notwendig und zweckmäßig gehalten."]
[]
[]
[]
[null,null,"Ort, Datum",null,null,null,null,null,"Name und Unterschrift d. FBB",null,null,null,"Ort, Datum",null,null,null,null,null,"Name und Unterschrift d. FBB"]
[]
[]
[]
[null,"   II.2  Bemerkungen",null,null,null,null,null,null,null,null,null,"   II.2.  Bemerkungen"]
[]
[]
[null,null,"   Zum Schutz der Bestände sind  vorbeugende und"]
[null,null,"   bekämpfende Maßnahmen …              jeweils nur ein Feld ankreuzen"]
[]
[null,null,"  • dringend erforderlich",null,null,null,"  ja",null,"  nein"]
[]
[null,null,"  • weniger dringend",null,null,null,"  ja",null,"  nein"]
[]
[null,null,"  • nachrangig",null,null,null,"  ja",null,"  nein"]
[]
[]
[]
[]
[null,null,"  II.2.1  Fragen zu Förderausschlüssen "]
[]
[null,null,"  • Maßn. des regulären",null,null,null,"  ja",null,"  nein"]
[null,null,"    Holzeinschlags"]
[]
[null,null,"  • Trifft es zu, dass das aufgearbeitete",null,null,null,"  ja",null,"  nein"]
[null,null,"    Holz nicht infolge von Extremwetter-"]
[null,null,"    ereignissen anfiel?"]
[]
[null,null,"  • falls Maßn. nach Nr. 2.2.:",null,null,null,"  ja",null,"  nein"]
[null,null,"    Kauf von Maschinen und Geräten"]
[null,null,"    (außer Ausgaben unter Nr. 2.3.1)"]
[]
[null,null,"  • falls Maßn. nach Nr. 2.2.3.:",null,null,null,"  ja",null,"  nein"]
[null,null,"    wurde auf Antragsflächen"]
[null,null,"    schon Hacken gefördert?"]
[]
[null,null,"  • falls Maßn. nach Nr. 2.2.3.:",null,null,null,"  ja",null,"  nein"]
[null,null,"    wurde auf Antragsflächen"]
[null,null,"    schon Mulchen gefördert?"]
[]
[null,null,"  • Maßn. auf Flächen, auf denen die ",null,null,null,"  ja",null,"  nein"]
[null,null,"    Bewirtschaftung aufgrund rechtlicher"]
[null,null,"    Vorschriften dauerhaft untersagt ist "]
[]
[null,null,"  • Maßn. auf Flächen, die dem ",null,null,null,"  ja",null,"  nein"]
[null,null,"    Zuw.-Empf. zum Zwecke des"]
[null,null,"    Naturschutzes unentgeltlich"]
[null,null,"    übertragen worden sind"]
[]
[]
[null,null,"II.2.2.  Fragen zu Rechtsgrundlagen"]
[null,null,"  •  Enthielt / enthält der Vorbestand (Nr. 2.3.1 der RL) …"]
[]
[null,null,"     überwiegend nicht stand-\n     ortheimische Baumarten"]
[null,null,null,null,null,null,"  ja",null,"  nein"]
[]
[null,null,"     oder nicht standort-\n     gerechte Baumarten"]
[null,null,null,null,null,null,"  ja",null,"  nein"]
[]
[null,null,"     oder fehlten darin\n     Mischbaumarten?"]
[null,null,null,null,null,null,"  ja",null,"  nein"]
[]
[null,null,"  •  Wird durch das Vorhaben ein naturnaher Laubwald oder \n     ein Laub-Mischwald oder ein Laub-Nadel-Mischwald mit \n     höherer Struktur- und Artenvielfalt begründet?"]
[null,null,null,null,null,null,"  ja",null,"  nein"]
[]
[null,null,"  • Bei Aufforstungen und Verjüngung: "]
[]
[null,null,"     Erfolgt die Maßnahme (nach Nr. 2.3.2 RL) unter tlw. \n     Verwendung anderer Baumarten als im Vorbestand?"]
[]
[]
[null,null,null,null,null,null,"  ja",null,"  nein"]
[]
[null,null,"  • Ist es Ziel, veränderte Bestandsstruktur zu schaffen?"]
[]
[null,null,null,null,null,null,"  ja",null,"  nein"]
[]
[null,null,"  • Bei Aufforstungen:\n     FBB bestätigt, das Ziel eines stabilen Laubwaldes bzw. Laub-Nadel-\n     Mischwaldes (gemäß I. a - c dieser Anlage) könne unter Beibehaltung\n     des Laubholzanteils (auch unter Beachtung evtl. notwendig werden-\n     der Pflegemaßnahmen) als langfristig gesichert angesehen werden."]
[]
[]
[]
[]
[null,null,null,null,null,null,"  ja",null,"  nein"]
[]
[null,null,"  • Bei Nachbesserungen:\n     FBB bestätigt, es seien « bei geförderten Kulturen in den ersten 36 \n     Monaten nach Pflanzung oder Saat aufgrund natürlicher Ereignisse \n     (wie Frost, Trockenheit, Überschwemmung, nicht jedoch Wildverbiss, \n     Mäusefraß oder Pflegemängel) Ausfälle in Höhe von mehr als 30 %\n     der Pflanzenzahl oder einem Hektar zusammenhängender Fläche \n     aufgetreten. »"]
[]
[]
[]
[]
[]
[]
[null,null,null,null,null,null,"  ja",null,"  nein"]
[]
[null,null,"  •  Werden die folgenden Rechtsgrundlagen beachtet?"]
[]
[null,null,"    Waldbaukonzept NRW",null,null,null,"  ja",null,"  nein"]
[]
[null,null,"    Standort- und Waldbaukarten ",null,null,null,"  ja",null,"  nein"]
[null,null,"    von www.waldinfo.nrw.de"]
[]
[null,null,"    Herkunftsempfehlungen",null,null,null,"  ja",null,"  nein"]
[]
[null,null,"    Saat 2014",null,null,null,"  ja",null,"  nein"]
[]
[]
[null,null,"II.2.3.   Doppelförderung: \n             Ist das Vorhaben eine..."]
[]
[null,null,"  • Ausgleichsmaßnahme?",null,null,null,"  ja",null,"  nein"]
[]
[null,null,"  • Maßnahme im Rahmen eines Ökokontos?",null,null,null,"  ja",null,"  nein"]
[]
[null,null,"  • FöNa-Maßnahme?",null,null,null,"  ja",null,"  nein"]
[]
[null,null,"  • Wurden die Flächen zwecks Naturschutz \n     dem Zuwendungsempfänger \n     unentgeltlich übertragen?"]
[null,null,null,null,null,null,"  ja",null,"  nein"]
[]
[null,null,"  • Bei Maßnahmen nach Nr. 2.4.1.: keine\n    Überschneidung mit Direkter Förderung?"]
[null,null,null,null,null,null,"  ja",null,"  nein"]
[]
[]
[null,null,"II.2.4.    nur bei Anträgen nach 2.4.1 "]
[null,null,"              Größe des Waldeigentums in NRW unter 20 ha?"]
[]
[null,null,"  Name Waldbesitzer",null,null,null,"weniger als 20 ha"]
[null,null,null,null,null,null,"Waldbesitz in NRW? (J / N)"]
[]
[]
[]
[]
[]
[]
[null,"  Folgende Belege sind beigefügt:",null,null,null,null,null,null,null,null,null,"  Folgende Belege sind beigefügt:"]
[]
[null,null,"Karte  (Maßstab 1 : 25.000)",null,null,"   (immer)",null,null,null,null,null,null,"bei zertifiziertem Saatgut: Zertifikat"]
[]
[null,null,null,null,null,null,null,null,null,null,null,null,"Lieferschein"]
[]
[]
[]
[]
[null,null,"Maßnahme"]
[]
[null,null,"2,4,3,1,",null,null,null,null,null,null,null,null,null,"EUR / ha","EUR / ha","EUR / ha"]
[null,10,"Pflege zur Übernahme vorhandener NV",null,null,null,10,null,null,null,null,null,970,null,null,"(nämlich je 320 EUR für zwei Pflegemaßnahmen - letzter redaktioneller Fehler am 07.06.2022 korrigiert)"]
[null,11,"Künstliche Begrünung",null,null,null,11,null,null,null,null,null,2100,null,null,"(Fördersätze gelten seit Dezember 2023)"]
[null,null,"2,4,3,2,",null,null,null,null,null,null,null,null,null,"EUR / ha","EUR / ha","EUR / ha"]
[null,"WET","Standardmaßnahme",null,null,null,"WET","kompatibel mit FFH-Lebensraumtyp?",null,null,null,null,"+ 2x Pflege","+ 1x Pflege","+0x Pflege"]
[null,12,"Wiederbewaldung im Standardverband",null,null,null,12,"voll",null,null,null,null,12700,{"$f":"M267-320","v":12380},{"$f":"M267-640","v":12060}]
[null,13,"Wiederbewaldung im Standardverband",null,null,null,13,"voll",null,null,null,null,12600,{"$f":"M268-320","v":12280},{"$f":"M268-640","v":11960}]
[null,14,"Wiederbewaldung im Standardverband",null,null,null,14,"eingeschränkt",null,null,null,null,11000,10680,10360]
[null,20,"Wiederbewaldung im Standardverband",null,null,null,20,"voll",null,null,null,null,11700,11380,11060]
[null,21,"Wiederbewaldung im Standardverband",null,null,null,21,"eingeschränkt",null,null,null,null,12600,12280,11960]
[null,23,"Wiederbewaldung im Standardverband",null,null,null,23,"voll",null,null,null,null,12300,11980,11660]
[null,27,"Wiederbewaldung im Standardverband",null,null,null,27,"eingeschränkt",null,null,null,null,10700,10380,10060]
[null,28,"Wiederbewaldung im Standardverband",null,null,null,28,"eingeschränkt",null,null,null,null,11000,10680,10360]
[null,29,"Wiederbewaldung im Standardverband",null,null,null,29,"eingeschränkt",null,null,null,null,10600,10280,9960]
[null,31,"Wiederbewaldung im Standardverband",null,null,null,31,"eingeschränkt",null,null,null,null,10400,10080,9760]
[null,32,"Wiederbewaldung im Standardverband",null,null,null,32,"eingeschränkt",null,null,null,null,10700,10380,10060]
[null,40,"Wiederbewaldung im Standardverband",null,null,null,40,"voll",null,null,null,null,6400,6080,5760]
[null,42,"Wiederbewaldung im Standardverband",null,null,null,42,"keine",null,null,null,null,9700,9380,9060]
[null,44,"Wiederbewaldung im Standardverband",null,null,null,44,"eingeschränkt",null,null,null,null,2900,2580,2260]
[null,62,"Wiederbewaldung im Standardverband",null,null,null,62,"keine",null,null,null,null,7600,7280,6960]
[null,68,"Wiederbewaldung im Standardverband",null,null,null,68,"keine",null,null,null,null,7600,7280,6960]
[null,69,"Wiederbewaldung im Standardverband",null,null,null,69,"keine",null,null,null,null,7700,7380,7060]
[null,82,"Wiederbewaldung im Standardverband",null,null,null,82,"keine",null,null,null,null,4700,4380,4060]
[null,84,"Wiederbewaldung im Standardverband",null,null,null,84,"keine",null,null,null,null,2100,1780,1460]
[null,88,"Wiederbewaldung im Standardverband",null,null,null,88,"keine",null,null,null,null,7900,7580,7260]
[null,92,"Wiederbewaldung im Standardverband",null,null,null,92,"keine",null,null,null,null,6900,6580,6260]
[null,96,"Wiederbewaldung im Standardverband",null,null,null,96,"keine",null,null,null,null,6900,6580,6260]
[null,98,"Wiederbewaldung im Standardverband",null,null,null,98,"keine",null,null,null,null,6300,5980,5660]
[]
[null,null,null,null,null,null,null,null,null,null,null,null,null,"außerhalb von"]
[null,null,"Fördersätze je Baum nur noch bei Nachbesserungen nach Nr. 2.4.5.1",null,null,null,null,null,null,null,null,null,null,"Schutzgebieten"]
[]
[null,1,"REr - Roterle",null,"< 0,8 m",null,null,null,null,null,null,null,null,0.91]
[null,2,"REr - Roterle",null,"0,8-1,2 m",null,null,null,null,null,null,null,null,1.25]
[null,3,"REr - Roterle",null,"> 1,2 m",null,null,null,null,null,null,null,null,1.61]
[null,4,"Wei - Weiden",null,"< 0,8 m",null,null,null,null,null,null,null,null,1.2]
[null,5,"Wei - Weiden",null,"0,8-1,2 m",null,null,null,null,null,null,null,null,1.72]
[null,6,"Wei - Weiden",null,"> 1,2 m",null,null,null,null,null,null,null,null,2.2400000000000002]
[null,7,"HBu - Hainbuche",null,"< 0,8 m",null,null,null,null,null,null,null,null,0.99]
[null,8,"HBu - Hainbuche",null,"0,8-1,2 m",null,null,null,null,null,null,null,null,1.48]
[null,9,"HBu - Hainbuche",null,"> 1,2 m",null,null,null,null,null,null,null,null,1.73]
[null,10,"RBu - Rotbuche",null,"< 0,8 m",null,null,null,null,null,null,null,null,0.91]
[null,11,"RBu - Rotbuche",null,"0,8-1,2 m",null,null,null,null,null,null,null,null,1.26]
[null,12,"RBu - Rotbuche",null,"> 1,2 m",null,null,null,null,null,null,null,null,1.74]
[null,13,"Ah - Ahorn",null,"< 0,8 m",null,null,null,null,null,null,null,null,1]
[null,14,"Ah - Ahorn",null,"0,8-1,2 m",null,null,null,null,null,null,null,null,1.39]
[null,15,"Ah - Ahorn",null,"> 1,2 m",null,null,null,null,null,null,null,null,1.68]
[null,16,"Ulm - Ulme",null,"< 0,8 m",null,null,null,null,null,null,null,null,1]
[null,17,"Ulm - Ulme",null,"0,8-1,2 m",null,null,null,null,null,null,null,null,1.39]
[null,18,"Ulm - Ulme",null,"> 1,2 m",null,null,null,null,null,null,null,null,1.68]
[null,19,"Eb - Eberesche",null,"< 0,8 m",null,null,null,null,null,null,null,null,1.1399999999999999]
[null,20,"Eb - Eberesche",null,"0,8-1,2 m",null,null,null,null,null,null,null,null,1.22]
[null,21,"Eb - Eberesche",null,"> 1,2 m",null,null,null,null,null,null,null,null,1.6]
[null,22,"VB - Vogelbeere",null,"< 0,8 m",null,null,null,null,null,null,null,null,1.1399999999999999]
[null,23,"VB - Vogelbeere",null,"0,8-1,2 m",null,null,null,null,null,null,null,null,1.22]
[null,24,"VB - Vogelbeere",null,"> 1,2 m",null,null,null,null,null,null,null,null,1.6]
[null,25,"SEi - Stieleiche",null,"< 0,8 m",null,null,null,null,null,null,null,null,0.96]
[null,26,"SEi - Stieleiche",null,"0,8-1,2 m",null,null,null,null,null,null,null,null,1.35]
[null,27,"SEi - Stieleiche",null,"> 1,2 m",null,null,null,null,null,null,null,null,2.11]
[null,28,"TEi - Traubeneiche",null,"< 0,8 m",null,null,null,null,null,null,null,null,0.96]
[null,29,"TEi - Traubeneiche",null,"0,8-1,2 m",null,null,null,null,null,null,null,null,1.86]
[null,30,"TEi - Traubeneiche",null,"> 1,2 m",null,null,null,null,null,null,null,null,2.12]
[null,31,"REi - Roteiche",null,"< 0,8 m",null,null,null,null,null,null,null,null,0.96]
[null,32,"REi - Roteiche",null,"0,8-1,2 m",null,null,null,null,null,null,null,null,1.27]
[null,33,"REi - Roteiche",null,"> 1,2 m",null,null,null,null,null,null,null,null,1.91]
[null,34,"Li - Linde",null,"< 0,8 m",null,null,null,null,null,null,null,null,0.9]
[null,35,"Li - Linde",null,"0,8-1,2 m",null,null,null,null,null,null,null,null,1.37]
[null,36,"Li - Linde",null,"> 1,2 m",null,null,null,null,null,null,null,null,1.83]
[null,37,"Kir - Kirsche",null,"< 0,8 m",null,null,null,null,null,null,null,null,0.91]
[null,38,"Kir - Kirsche",null,"0,8-1,2 m",null,null,null,null,null,null,null,null,1.38]
[null,39,"Kir - Kirsche",null,"> 1,2 m",null,null,null,null,null,null,null,null,1.89]
[null,40,"As - Aspe",null,"< 0,8 m",null,null,null,null,null,null,null,null,1.4]
[null,41,"As - Aspe",null,"0,8-1,2 m",null,null,null,null,null,null,null,null,1.9]
[null,42,"As - Aspe",null,"> 1,2 m",null,null,null,null,null,null,null,null,2.25]
[null,43,"WA - Wildapfel",null,"< 0,8 m",null,null,null,null,null,null,null,null,1.27]
[null,44,"WA - Wildapfel",null,"0,8-1,2 m",null,null,null,null,null,null,null,null,1.51]
[null,45,"WA - Wildapfel",null,"> 1,2 m",null,null,null,null,null,null,null,null,1.74]
[null,46,"WB - Wildbirne",null,"< 0,8 m",null,null,null,null,null,null,null,null,1.27]
[null,47,"WB - Wildbirne",null,"0,8-1,2 m",null,null,null,null,null,null,null,null,1.51]
[null,48,"WB - Wildbirne",null,"> 1,2 m",null,null,null,null,null,null,null,null,1.74]
[null,49,"Pa - Schwarzpappel",null,"< 0,8 m",null,null,null,null,null,null,null,null,0.47]
[null,50,"Pa - Schwarzpappel",null,"0,8-1,2 m",null,null,null,null,null,null,null,null,0.68]
[null,51,"Pa - Schwarzpappel",null,"> 1,2 m",null,null,null,null,null,null,null,null,2.16]
[null,52,"Elsb - Elsbeere",null,"< 0,8 m",null,null,null,null,null,null,null,null,4.37]
[null,53,"Elsb - Elsbeere",null,"0,8-1,2 m",null,null,null,null,null,null,null,null,5.3]
[null,54,"Elsb - Elsbeere",null,"> 1,2 m",null,null,null,null,null,null,null,null,5.3]
[null,55,"Spei - Speierling",null,"< 0,8 m",null,null,null,null,null,null,null,null,4.37]
[null,56,"Spei - Speierling",null,"0,8-1,2 m",null,null,null,null,null,null,null,null,5.3]
[null,57,"Spei - Speierling",null,"> 1,2 m",null,null,null,null,null,null,null,null,5.3]
[null,58,"Me - Mehlbeere",null,"< 0,8 m",null,null,null,null,null,null,null,null,4.37]
[null,59,"Me - Mehlbeere",null,"0,8-1,2 m",null,null,null,null,null,null,null,null,5.3]
[null,60,"Me - Mehlbeere",null,"> 1,2 m",null,null,null,null,null,null,null,null,5.3]
[]
[null,{"$f":"IF(#REF!=\"x\",\"%§\",61)","v":{"$error":"#REF!"}},"Do - Douglasie",null,"alle",null,null,null,null,null,null,null,null,0.92]
[null,{"$f":"IF(#REF!=\"x\",\"%§\",62)","v":{"$error":"#REF!"}},"KTa - Küstentanne",null,"alle",null,null,null,null,null,null,null,null,0.96]
[null,{"$f":"IF(#REF!=\"x\",\"%§\",63)","v":{"$error":"#REF!"}},"Lä - Lärche",null,"alle",null,null,null,null,null,null,null,null,0.9]
[null,{"$f":"IF(#REF!=\"x\",\"%§\",64)","v":{"$error":"#REF!"}},"Sk - Schwarzkiefer",null,"alle",null,null,null,null,null,null,null,null,0.7]
[null,{"$f":"IF(#REF!=\"x\",\"%§\",65)","v":{"$error":"#REF!"}},"Wk - Waldkiefer",null,"alle",null,null,null,null,null,null,null,null,0.48]
[null,{"$f":"IF(#REF!=\"x\",\"%§\",66)","v":{"$error":"#REF!"}},"WßT - Weißtanne",null,"alle",null,null,null,null,null,null,null,null,1.07]
[]
[null,{"$f":"IF(#REF!<>\"x\",\"%§\",61)","v":{"$error":"#REF!"}},"NH in SG bei WET nicht ff.!"]
[null,{"$f":"IF(#REF!<>\"x\",\"%§\",62)","v":{"$error":"#REF!"}},"NH in SG bei WET nicht ff.!"]
[null,{"$f":"IF(#REF!<>\"x\",\"%§\",63)","v":{"$error":"#REF!"}},"NH in SG bei WET nicht ff.!"]
[null,{"$f":"IF(#REF!<>\"x\",\"%§\",64)","v":{"$error":"#REF!"}},"NH in SG bei WET nicht ff.!"]
[null,{"$f":"IF(#REF!<>\"x\",\"%§\",65)","v":{"$error":"#REF!"}},"NH in SG bei WET nicht ff.!"]
[null,{"$f":"IF(#REF!<>\"x\",\"%§\",66)","v":{"$error":"#REF!"}},"NH in SG bei WET nicht ff.!"]
[]
[null,67,"Walnuss",null,"< 0,8 m",null,null,null,null,null,null,null,null,2.77]
[null,68,"Walnuss",null,"0,8-1,2 m",null,null,null,null,null,null,null,null,3.44]
[null,69,"Walnuss",null,"> 1,2 m",null,null,null,null,null,null,null,null,3.44]
[]
[null,71,"Baumhasel",null,"< 0,8 m",null,null,null,null,null,null,null,null,2.94]
[null,72,"Baumhasel",null,"0,8-1,2 m",null,null,null,null,null,null,null,null,3.57]
[null,73,"Baumhasel",null,"> 1,2 m",null,null,null,null,null,null,null,null,3.57]
[null,74,"Edelkastanie",null,"< 0,8 m",null,null,null,null,null,null,null,null,2.1]
[null,75,"Edelkastanie",null,"0,8-1,2 m",null,null,null,null,null,null,null,null,2.72]
[null,76,"Edelkastanie",null,"> 1,2 m",null,null,null,null,null,null,null,null,3.15]
[]
[null,83,"Riesenlebensbaum",null,"alle",null,null,null,null,null,null,null,null,0.92]
[null,84,"Atlaszeder",null,"alle",null,null,null,null,null,null,null,null,0.92]
[null,85,"Libanonzeder",null,"alle",null,null,null,null,null,null,null,null,0.92]
[]
[null,90,"sonstiges LH",null,null,null,null,null,null,null,null,null,null,0]
[null,91,"sonstiges NH",null,null,null,null,null,null,null,null,null,null,0]
[]
[null,null,"je Strauch",null,null,null,null,null,null,null,null,null,null,1.35]
[null,null,"Saat - Stieleiche",null,null,null,null,null,null,null,null,null,null,2160]
[null,null,"Saat - Traubeneiche",null,null,null,null,null,null,null,null,null,null,2160]
[null,null,"Saat - Bucheckern",null,null,null,null,null,null,null,null,null,null,2020]
[null,null,"Förderhöchstbeträge",null,null,null,null,null,null,null,null,null,null,6350]